bitfinex/quotes_BTCUSD_20251221
["timestamp","ask_amount","ask_price","bid_price","bid_amount"]
[1766348292691,0.00035719,88388.0,88381.0,0.05657324]
[1766348292914,0.00035719,88388.0,88381.0,0.12530464]
[1766348293304,1.9e-07,88388.0,88382.0,0.01131452]
[1766348293505,0.03388679,88394.0,88382.0,0.01131452]
[1766348293837,0.00548019,88394.0,88382.0,4.852e-05]
[1766348294039,0.00548019,88394.0,88383.0,0.01131439]
[1766348294243,0.00548019,88394.0,88382.0,0.01136304]
[1766348295053,0.03388679,88395.0,88383.0,0.01131439]
[1766348295312,0.06787269,88401.0,88395.0,0.114182]
[1766348295313,0.00568,88401.0,88395.0,0.114182]
[1766348295513,0.03398449,88400.0,88395.0,0.113182]
[1766348295721,0.00568,88405.0,88399.0,0.24003]
[1766348297618,0.00568,88405.0,88399.0,0.35402]
[1766348298299,0.01131042,88414.0,88402.0,0.11399]
[1766348298506,0.00568,88413.0,88402.0,0.12530196]
[1766348298713,0.01131106,88412.0,88402.0,0.11399]
[1766348298924,0.01131106,88412.0,88402.0,0.12530196]
[1766348299130,0.01131106,88412.0,88403.0,0.11399]
[1766348300931,0.01131106,88412.0,88405.0,0.11399]
[1766348301138,0.01131106,88412.0,88406.0,0.11399]
[1766348304777,0.02441776,88417.0,88406.0,0.11399]
[1766348304986,0.01130991,88418.0,88406.0,0.11399]
[1766348304987,0.00568,88416.0,88406.0,0.24003]
[1766348305188,0.01131106,88414.0,88408.0,0.11399]
[1766348305392,0.00568,88416.0,88408.0,0.11399]
[1766348305606,0.01699106,88416.0,88410.0,0.11399]
[1766348305868,0.01699106,88416.0,88410.0,0.11299]
[1766348306301,0.02830123,88416.0,88401.0,0.22455]
[1766348306527,0.01131055,88413.0,88401.0,0.22455]
[1766348306736,0.01131068,88412.0,88401.0,0.22455]
[1766348306948,0.02488408,88405.0,88392.0,0.01131324]
[1766348307152,0.01131183,88403.0,88393.0,0.00568]
[1766348307362,0.0113117,88404.0,88393.0,0.00568]
[1766348307567,0.02488408,88405.0,88393.0,0.00548]
[1766348307998,0.02488408,88405.0,88393.0,0.01679311]
[1766348308758,0.02488408,88405.0,88393.0,0.00548]
[1766348308990,0.02488408,88405.0,88393.0,0.00448]
[1766348309363,0.01357251,88405.0,88393.0,0.01579311]
[1766348310122,0.01357251,88405.0,88393.0,0.01479311]
[1766348310717,0.02488408,88405.0,88393.0,0.12398]
[1766348310943,0.01357251,88405.0,88393.0,0.13429311]
[1766348311115,0.01357251,88405.0,88394.0,0.01131298]
[1766348311478,0.01357251,88405.0,88393.0,0.13429311]
[1766348311479,0.02488408,88405.0,88393.0,0.13429311]
[1766348312110,0.01357251,88405.0,88393.0,0.13429311]
[1766348312628,0.02488408,88405.0,88393.0,0.13329311]
[1766348312800,0.02488408,88405.0,88393.0,0.121431]
[1766348312801,0.0113117,88404.0,88393.0,0.121431]
[1766348313008,0.02488408,88405.0,88393.0,0.121431]
[1766348313187,0.02488408,88405.0,88393.0,0.13274411]
[1766348313429,0.02488408,88405.0,88393.0,0.000931]
[1766348314377,0.01357251,88405.0,88393.0,0.01224411]
[1766348314574,0.02488408,88405.0,88393.0,0.000931]
[1766348315334,0.02488408,88405.0,88393.0,0.01224411]
[1766348315544,0.01357251,88405.0,88393.0,0.01224411]
[1766348316100,0.01357251,88405.0,88394.0,0.01131298]
[1766348316245,0.00568,88406.0,88394.0,0.01131298]
[1766348316429,0.01357251,88405.0,88396.0,0.01131272]
[1766348316629,0.01347251,88405.0,88398.0,0.12354]
[1766348316918,0.00568,88406.0,88402.0,0.01131196]
[1766348317070,0.01131017,88416.0,88405.0,0.000549]
[1766348317272,0.01131017,88416.0,88403.0,0.123089]
[1766348317273,0.02262251,88410.0,88403.0,0.123089]
[1766348317630,0.00568,88409.0,88403.0,0.123089]
[1766348318406,0.00568,88409.0,88400.0,0.22156]
[1766348319347,0.00568,88409.0,88400.0,0.3451]
[1766348319723,0.00568,88409.0,88400.0,0.34478421]
[1766348320244,0.00568,88409.0,88400.0,0.34446839]
[1766348320399,0.00568,88409.0,88400.0,0.3441526]
[1766348320898,0.01699106,88409.0,88400.0,0.3441526]
[1766348321291,0.00568,88409.0,88400.0,0.3441526]
[1766348323016,0.00568,88409.0,88401.0,0.12354]
[1766348323565,0.00568,88409.0,88402.0,0.12354]
[1766348327611,0.01131119,88408.0,88401.0,0.22156]
[1766348327849,0.01131144,88406.0,88391.0,0.0283048]
[1766348328065,0.00055,88401.0,88393.0,0.000931]
[1766348328347,0.07355185,88402.0,88390.0,0.00568]
[1766348328553,0.01131234,88399.0,88389.0,4.08e-06]
[1766348328772,0.01131234,88399.0,88381.0,0.01131464]
[1766348328773,0.01131298,88394.0,88382.0,0.00568]
[1766348328917,0.01131311,88393.0,88382.0,0.00568]
[1766348329318,0.01699298,88394.0,88382.0,0.00568]
[1766348329514,0.01699298,88393.0,88382.0,0.00568]
[1766348329715,0.01699298,88393.0,88382.0,0.01699452]
[1766348329951,0.01699298,88393.0,88384.0,0.01131426]
[1766348330155,0.01699298,88393.0,88383.0,0.01131439]
[1766348331069,0.01699298,88393.0,88379.0,0.18011401]
[1766348331070,0.00055,88383.0,88374.0,0.01131554]
[1766348331268,0.05656785,88390.0,88375.0,0.01739541]
[1766348331269,0.01699375,88388.0,88375.0,0.01739541]
[1766348331429,0.01699375,88388.0,88376.0,0.12354]
[1766348331629,0.01699375,88388.0,88377.0,0.12354]
[1766348331876,0.00568,88388.0,88377.0,0.13485516]
[1766348332311,0.00568,88388.0,88377.0,0.13521235]
[1766348332459,0.00568,88388.0,88377.0,0.12389719]
[1766348332662,0.00568,88388.0,88377.0,0.13521235]
[1766348332869,0.00568,88388.0,88377.0,0.12389719]
[1766348333111,0.00568,88388.0,88377.0,0.13521235]
[1766348333272,0.00568,88388.0,88377.0,0.12389719]
[1766348333701,0.00568,88388.0,88377.0,0.13521235]
[1766348334108,0.00568,88388.0,88377.0,0.12389719]
[1766348334318,0.00568,88388.0,88380.0,0.12354]
[1766348334521,1e-06,88388.0,88384.0,0.22156]
[1766348334680,1e-06,88388.0,88385.0,0.12354]
[1766348336082,1e-06,88388.0,88385.0,0.22156]
[1766348336286,1e-06,88388.0,88386.0,0.12354]
[1766348341310,1e-06,88388.0,88386.0,0.12254]
[1766348342727,1e-06,88388.0,88386.0,0.12154]
[1766348346044,1e-06,88388.0,88386.0,0.120991]
[1766348350481,0.00568,88390.0,88388.0,0.01131375]
[1766348350690,0.00568,88390.0,88386.0,0.17756103]
[1766348350691,0.00568,88390.0,88387.0,0.01131388]
[1766348350894,0.00558,88390.0,88387.0,0.01131388]
[1766348351107,0.00548,88390.0,88386.0,0.132305]
[1766348351378,0.00548,88390.0,88386.0,0.120991]
[1766348351590,0.00548,88390.0,88386.0,0.119991]
[1766348352228,0.00548,88390.0,88386.0,0.131305]
[1766348352444,0.00548,88390.0,88386.0,0.119991]
[1766348353604,0.00568,88391.0,88386.0,0.119991]
[1766348353836,0.00568,88391.0,88386.0,0.118991]
[1766348354887,0.00568,88391.0,88386.0,0.130305]
[1766348355254,0.00568,88391.0,88386.0,0.118991]
[1766348355559,0.00568,88391.0,88386.0,0.130305]
[1766348358230,0.00568,88391.0,88387.0,0.01131388]
[1766348358662,0.03576167,88399.0,88393.0,0.01131311]
[1766348358663,0.00568,88398.0,88393.0,0.01131311]
[1766348358852,0.00568,88399.0,88392.0,0.23666]
[1766348359115,0.00568,88399.0,88391.0,0.01186236]
[1766348359116,0.00568,88399.0,88396.0,0.12472]
[1766348359938,0.00568,88399.0,88396.0,0.12372]
[1766348360598,0.00568,88399.0,88396.0,0.12272]
[1766348362035,0.00568,88400.0,88396.0,0.12272]
[1766348365267,0.00568,88402.0,88400.0,0.000549]
[1766348365720,0.00568,88402.0,88398.0,0.12472]
[1766348365899,0.00568,88402.0,88398.0,0.12417]
[1766348366311,0.00568,88402.0,88392.0,0.01131324]
[1766348366481,0.00568,88402.0,88390.0,0.24330349]
[1766348366724,0.00568,88402.0,88391.0,0.01131336]
[1766348367350,0.00568,88402.0,88390.0,0.25461532]
[1766348367559,0.00568,88402.0,88391.0,0.01131336]
[1766348367964,0.00568,88402.0,88392.0,0.11272]
[1766348368856,0.00568,88402.0,88394.0,0.11272]
[1766348369027,0.00568,88402.0,88398.0,0.11272]
[1766348370099,0.00568,88402.0,88399.0,0.11272]
[1766348370299,0.01925251,88405.0,88402.0,0.000549]
[1766348370599,0.01925251,88405.0,88399.0,0.11272]
[1766348370801,0.00568,88405.0,88400.0,0.11272]
[1766348371013,0.00568,88409.0,88405.0,0.11272]
[1766348371912,0.01131119,88408.0,88405.0,0.11272]
[1766348372119,0.04144368,88409.0,88405.0,0.11272]
[1766348372514,0.01131119,88408.0,88405.0,0.11272]
[1766348373772,0.01699106,88409.0,88405.0,0.11272]
[1766348374018,0.00568,88409.0,88405.0,0.11272]
[1766348374781,0.005131,88409.0,88405.0,0.11272]
[1766348378712,0.005131,88409.0,88398.0,0.00568]
[1766348378713,0.01186057,88405.0,88398.0,0.00568]
[1766348378918,0.01131183,88403.0,88398.0,0.00568]
[1766348379114,0.01131208,88401.0,88398.0,0.00568]
[1766348379514,0.01131208,88401.0,88398.0,0.004931]
[1766348379753,0.01131196,88402.0,88398.0,0.004931]
[1766348379948,0.01131208,88401.0,88398.0,0.004931]
[1766348380362,0.01131208,88401.0,88390.0,0.46160967]
[1766348380363,0.0678712,88403.0,88380.0,0.11255]
[1766348380364,0.01131285,88395.0,88380.0,0.11255]
[1766348380511,0.01131311,88393.0,88381.0,0.12954464]
[1766348380715,0.01131311,88393.0,88381.0,0.11823]
[1766348380716,0.01131349,88390.0,88381.0,0.11823]
[1766348381053,0.01131362,88389.0,88381.0,0.00568]
[1766348381706,0.01131426,88384.0,88380.0,4.852e-05]
[1766348381859,0.05679388,88387.0,88380.0,4.852e-05]
[1766348381860,0.011314,88386.0,88380.0,4.852e-05]
[1766348382058,0.01131413,88385.0,88380.0,4.852e-05]
[1766348382265,0.011314,88386.0,88380.0,4.852e-05]
[1766348382462,0.05679388,88387.0,88380.0,4.852e-05]
[1766348382664,0.04548,88387.0,88380.0,4.852e-05]
[1766348382985,0.01131375,88388.0,88380.0,4.852e-05]
[1766348383169,0.01131362,88389.0,88380.0,4.852e-05]
[1766348383536,0.01131375,88388.0,88380.0,4.852e-05]
[1766348385700,0.01131362,88389.0,88380.0,4.852e-05]
[1766348386647,0.01131388,88387.0,88380.0,4.852e-05]
[1766348387591,0.01131375,88388.0,88380.0,4.852e-05]
[1766348389216,0.011314,88386.0,88380.0,4.852e-05]
[1766348389422,0.01131336,88391.0,88380.0,4.852e-05]
[1766348389625,0.01699324,88392.0,88380.0,4.852e-05]
[1766348389836,0.01131336,88391.0,88380.0,4.852e-05]
[1766348391218,0.06430324,88392.0,88380.0,4.852e-05]
[1766348391441,0.01357251,88390.0,88380.0,4.852e-05]
[1766348391645,0.024886,88390.0,88380.0,4.852e-05]
[1766348391888,0.01357251,88390.0,88380.0,4.852e-05]
[1766348392191,0.01131362,88389.0,88380.0,4.852e-05]
[1766348392322,0.024886,88390.0,88380.0,4.852e-05]
[1766348392707,0.08145389,88390.0,88380.0,4.852e-05]
[1766348392905,0.01131362,88389.0,88380.0,4.852e-05]
[1766348393328,5.0,88381.0,88380.0,4.852e-05]
[1766348396126,5.0,88381.0,88377.0,0.00084799]
[1766348396385,5.0,88381.0,88377.0,0.11339799]
[1766348396386,5.0000929,88381.0,88377.0,0.11339799]
[1766348396622,5.0000929,88381.0,88377.0,0.00084799]
[1766348397234,5.0000929,88381.0,88376.0,0.01156189]
[1766348397455,5.0000929,88381.0,88376.0,0.00024661]
[1766348397662,5.0000929,88381.0,88378.0,0.01131503]
[1766348397864,5.0000929,88381.0,88376.0,0.01156189]
[1766348398067,5.0000929,88381.0,88377.0,0.01131516]
[1766348398486,4.3764539,88381.0,88380.0,0.11255]
[1766348398730,3.6289139,88381.0,88380.0,0.11255]
[1766348398933,2.67322834,88381.0,88380.0,0.05657388]
[1766348399174,2.42322834,88381.0,88380.0,0.05657388]
[1766348399388,2.16716228,88381.0,88380.0,0.05657388]
[1766348399596,2.04216228,88381.0,88378.0,0.07356956]
[1766348401004,2.04216228,88381.0,88378.0,0.01699503]
[1766348401808,2.04216228,88381.0,88378.0,0.005131]
[1766348402016,2.04216228,88381.0,88378.0,0.01644603]
[1766348403258,2.04216228,88381.0,88373.0,0.10185773]
[1766348403259,2.04216228,88381.0,88363.0,0.01131695]
[1766348403260,0.12226,88375.0,88363.0,0.01131695]
[1766348403464,0.01357251,88380.0,88363.0,0.01131695]
[1766348403465,0.12226,88373.0,88365.0,0.01131669]
[1766348403670,0.12226,88373.0,88364.0,0.00568]
[1766348404289,0.12226,88373.0,88364.0,0.00513]
[1766348404760,0.12226,88373.0,88364.0,0.01644682]
[1766348405170,0.12226,88373.0,88364.0,0.00513]
[1766348405684,0.25058,88374.0,88364.0,0.01644682]
[1766348406324,0.25058,88374.0,88365.0,0.01131669]
[1766348406929,0.00568,88379.0,88366.0,0.06789889]
[1766348407131,0.00568,88379.0,88374.0,0.000549]
[1766348407330,0.00568,88379.0,88368.0,0.01131631]
[1766348407536,0.0169949,88379.0,88366.0,0.01131656]
[1766348408210,0.00568,88379.0,88367.0,0.01131644]
[1766348408637,0.0169949,88379.0,88366.0,0.01131656]
[1766348408841,0.0169949,88379.0,88368.0,0.00024663]
[1766348409683,0.00568,88379.0,88368.0,0.00024663]
[1766348410393,0.00568,88379.0,88369.0,0.00568]
[1766348410804,0.00560079,88379.0,88369.0,0.00568]
[1766348411028,0.01691569,88379.0,88369.0,0.00568]
[1766348411436,0.00560079,88379.0,88369.0,0.00568]
[1766348412562,0.16504569,88379.0,88369.0,0.00568]
[1766348412778,0.01131503,88378.0,88369.0,0.00568]
[1766348413130,0.01131516,88377.0,88369.0,0.00568]
[1766348413958,0.14813,88372.0,88368.0,0.00024663]
[1766348414166,0.14813,88372.0,88366.0,0.00568]
[1766348414398,0.1594458,88372.0,88366.0,0.00568]
[1766348414602,0.14813,88372.0,88366.0,0.00568]
[1766348415016,0.25058,88368.0,88361.0,0.00568]
[1766348415243,0.39871,88368.0,88361.0,0.01699721]
[1766348415451,0.39871,88368.0,88361.0,0.00568]
[1766348415672,0.39871,88368.0,88361.0,0.01699721]
[1766348416426,0.00568,88374.0,88368.0,0.000549]
[1766348417011,0.14813,88373.0,88363.0,0.01131695]
[1766348417210,0.14813,88373.0,88362.0,0.01131708]
[1766348418656,0.14813,88373.0,88361.0,0.01699721]
[1766348418873,0.14813,88373.0,88363.0,0.01131695]
[1766348419586,0.14813,88373.0,88361.0,0.01699721]
[1766348420228,0.14813,88373.0,88362.0,0.01131708]
[1766348420438,0.14813,88373.0,88361.0,0.01699721]
[1766348422280,0.15944567,88373.0,88361.0,0.00568]
[1766348424822,0.0113158,88372.0,88361.0,0.00568]
[1766348425037,0.15944567,88373.0,88361.0,0.01699721]
[1766348425264,0.14813,88373.0,88361.0,0.01699721]
[1766348425739,0.15944567,88373.0,88361.0,0.01699721]
[1766348425957,0.15944567,88373.0,88361.0,0.00568]
[1766348426170,0.14813,88373.0,88361.0,0.01699721]
[1766348427236,0.15944567,88373.0,88361.0,0.00568]
[1766348427601,0.15944567,88373.0,88361.0,0.01699721]
[1766348427808,0.14813,88373.0,88361.0,0.01699721]
[1766348428253,0.0113158,88372.0,88361.0,0.00568]
[1766348428603,0.14813,88373.0,88361.0,0.00568]
[1766348428802,0.15944567,88373.0,88361.0,0.00568]
[1766348429027,0.15944567,88373.0,88361.0,0.01699721]
[1766348429234,0.15944567,88373.0,88361.0,0.00568]
[1766348429666,0.15944567,88373.0,88361.0,0.01699721]
[1766348430066,0.14813,88373.0,88361.0,0.01699721]
[1766348430913,0.14813,88373.0,88362.0,0.01131708]
[1766348431076,0.14813,88373.0,88361.0,0.01699721]
[1766348431292,0.14793,88373.0,88361.0,0.01699721]
[1766348432362,0.14793,88373.0,88361.0,0.01131721]
[1766348432566,0.14793,88373.0,88362.0,0.00568]
[1766348432782,0.28309567,88373.0,88362.0,0.00568]
[1766348432991,0.01131592,88371.0,88362.0,0.00568]
[1766348433200,0.01131592,88371.0,88362.0,0.00558]
[1766348433430,0.01131592,88371.0,88362.0,0.00548]
[1766348433843,0.01131605,88370.0,88362.0,0.00548]
[1766348436156,0.01131618,88369.0,88362.0,0.00548]
[1766348436367,0.01131605,88370.0,88362.0,0.00548]
[1766348436785,0.01131618,88369.0,88362.0,0.00548]
[1766348437637,0.01131605,88370.0,88362.0,0.00548]
[1766348438508,0.01131618,88369.0,88362.0,0.00548]
[1766348439584,0.01131605,88370.0,88362.0,0.00548]
[1766348439804,0.01131592,88371.0,88362.0,0.00548]
[1766348440465,0.15147,88372.0,88362.0,0.00548]
[1766348440656,0.1627858,88372.0,88362.0,0.00548]
[1766348441143,0.01131592,88371.0,88362.0,0.00548]
[1766348441781,0.15147,88372.0,88362.0,0.00548]
[1766348447642,0.1627858,88372.0,88362.0,0.00548]
[1766348448073,0.15147,88372.0,88362.0,0.00548]
[1766348448664,0.1627858,88372.0,88362.0,0.00548]
[1766348448839,0.15147,88372.0,88362.0,0.00548]
[1766348450232,0.1627858,88372.0,88362.0,0.00548]
[1766348450535,0.27178,88373.0,88362.0,0.01679708]
[1766348450731,0.27178,88373.0,88362.0,0.00548]
[1766348450884,0.28309567,88373.0,88362.0,0.00548]
[1766348451490,0.27178,88373.0,88362.0,0.00548]
[1766348451820,0.28309567,88373.0,88362.0,0.00548]
[1766348452026,0.27178,88373.0,88362.0,0.00548]
[1766348453173,0.28309567,88373.0,88362.0,0.00548]
[1766348453376,0.0113158,88372.0,88362.0,0.00548]
[1766348453535,0.15193,88368.0,88362.0,0.00548]
[1766348454944,0.151381,88368.0,88362.0,0.01679708]
[1766348455134,0.151381,88368.0,88362.0,0.00548]
[1766348461210,0.16269731,88368.0,88362.0,0.00548]
[1766348461706,0.151381,88368.0,88362.0,0.00548]
[1766348462125,0.16269731,88368.0,88362.0,0.00548]
[1766348462532,0.151381,88368.0,88362.0,0.00548]
[1766348472664,0.00568,88374.0,88362.0,0.01679708]
[1766348472858,0.01131567,88373.0,88362.0,0.00548]
[1766348473459,0.0113158,88372.0,88362.0,0.00548]
[1766348474622,0.00568,88374.0,88363.0,0.01131695]
[1766348474827,0.00558,88374.0,88364.0,0.01131682]
[1766348475036,0.00548,88374.0,88364.0,0.01131682]
[1766348475664,0.00548,88374.0,88365.0,0.01131669]
[1766348476430,0.00548,88374.0,88364.0,0.01131682]
[1766348477092,0.00548,88374.0,88363.0,0.01131695]
[1766348477264,0.16610554,88374.0,88362.0,0.00548]
[1766348477488,0.15479,88374.0,88362.0,0.01679708]
[1766348479329,0.16610554,88374.0,88362.0,0.01679708]
[1766348479870,0.14931,88371.0,88362.0,0.00548]
[1766348482382,0.26634,88372.0,88362.0,0.00548]
[1766348483232,0.26634,88372.0,88362.0,0.01679708]
[1766348483467,0.26634,88372.0,88362.0,0.00548]
[1766348484501,0.00548,88374.0,88362.0,0.01679708]
[1766348484670,0.01679554,88374.0,88362.0,0.01679708]
[1766348485089,0.01679554,88374.0,88362.0,0.00548]
[1766348486271,0.01679554,88374.0,88362.0,0.01679708]
[1766348486466,0.01679554,88374.0,88362.0,0.00548]
[1766348488202,0.2664329,88381.0,88374.0,0.00055]
[1766348488203,9.29e-05,88381.0,88374.0,0.00055]
[1766348488333,9.29e-05,88381.0,88370.0,0.46201578]
[1766348488334,9.29e-05,88381.0,88372.0,0.00568]
[1766348488563,0.01140754,88381.0,88372.0,0.00568]
[1766348488744,9.29e-05,88381.0,88372.0,0.00568]
[1766348489347,0.01131477,88380.0,88372.0,0.00568]
[1766348489600,0.01140754,88381.0,88372.0,0.00568]
[1766348489786,0.01131477,88380.0,88372.0,0.00568]
[1766348490605,0.16062477,88380.0,88372.0,0.00568]
[1766348491283,0.14931,88380.0,88372.0,0.00568]
[1766348491490,0.14931,88380.0,88372.0,0.0047329]
[1766348492094,0.14931,88380.0,88372.0,0.0160487]
[1766348492222,0.14931,88380.0,88372.0,0.0047329]
[1766348496845,9.29e-05,88381.0,88372.0,0.0047329]
[1766348498818,2.9e-06,88381.0,88372.0,0.0047329]
[1766348499024,2.9e-06,88381.0,88372.0,0.0160487]
[1766348499327,2.9e-06,88381.0,88377.0,0.01131516]
[1766348499668,2.9e-06,88381.0,88376.0,0.01131528]
[1766348499870,2.9e-06,88381.0,88373.0,0.05657836]
[1766348500071,2.9e-06,88381.0,88373.0,0.01131567]
[1766348500848,2.9e-06,88381.0,88372.0,0.02962766]
[1766348500975,2.9e-06,88381.0,88374.0,0.01131554]
[1766348501784,2.9e-06,88381.0,88373.0,0.01131567]
[1766348503499,2.9e-06,88381.0,88372.0,0.0160487]
[1766348503717,2.9e-06,88381.0,88373.0,0.01131567]
[1766348504324,2.9e-06,88381.0,88372.0,0.0047329]
[1766348504640,2.9e-06,88381.0,88373.0,0.01131567]
[1766348505324,2.9e-06,88381.0,88374.0,0.01131554]
[1766348506090,2.9e-06,88381.0,88377.0,0.01131516]
[1766348506263,2.9e-06,88381.0,88376.0,0.01131528]
[1766348507090,2.9e-06,88381.0,88377.0,0.01131516]
[1766348507270,2.9e-06,88381.0,88376.0,0.01131528]
[1766348507874,2.9e-06,88381.0,88377.0,0.01131516]
[1766348508251,2.9e-06,88381.0,88376.0,0.01131528]
[1766348508460,2.9e-06,88381.0,88377.0,0.0678909]
[1766348508909,2.9e-06,88381.0,88379.0,0.05657452]
[1766348509130,0.00568,88391.0,88382.0,0.01131452]
[1766348509277,0.01131554,88389.0,88383.0,0.01131439]
[1766348509458,0.01925251,88391.0,88382.0,0.01131452]
[1766348510100,0.01925251,88391.0,88383.0,0.01131439]
[1766348510466,0.01925251,88391.0,88382.0,0.01131452]
[1766348510875,0.01925251,88391.0,88383.0,0.01357727]
[1766348511311,0.00568,88391.0,88383.0,0.01357727]
[1766348511806,0.01357727,88391.0,88383.0,0.01357727]
[1766348512329,0.01357727,88391.0,88380.0,0.01131477]
[1766348512829,0.01357727,88391.0,88381.0,0.01131464]
[1766348513234,0.01357727,88391.0,88380.0,0.01131477]
[1766348513629,0.01357727,88391.0,88381.0,0.01131464]
[1766348514156,0.01357727,88391.0,88380.0,0.01131477]
[1766348514741,0.01357727,88391.0,88381.0,0.01131464]
[1766348515723,0.01357727,88391.0,88380.0,0.47319062]
[1766348515982,0.01357727,88391.0,88381.0,0.01131464]
[1766348516541,0.01357727,88391.0,88380.0,0.47319062]
[1766348517142,0.01357727,88391.0,88381.0,0.01131464]
[1766348517341,0.01357727,88391.0,88380.0,0.47319062]
[1766348518266,0.01357727,88391.0,88381.0,0.01131464]
[1766348519921,0.01357727,88391.0,88380.0,0.47319062]
[1766348520105,0.01357727,88391.0,88380.0,0.01131477]
[1766348522543,0.01357727,88391.0,88381.0,0.01357757]
[1766348522965,0.00963781,88387.0,88378.0,0.00568]
[1766348523172,0.011314,88386.0,88378.0,0.00548]
[1766348523475,0.16121375,88388.0,88378.0,0.00548]
[1766348523881,0.1499,88388.0,88378.0,0.00548]
[1766348524485,0.16121375,88388.0,88378.0,0.00548]
[1766348524910,0.1499,88388.0,88378.0,0.00548]
[1766348526762,0.01131388,88387.0,88378.0,0.00548]
[1766348527022,0.37787962,88390.0,88340.0,0.00199998]
[1766348527023,0.13552,88380.0,88367.0,0.01131644]
[1766348527227,0.13552,88380.0,88369.0,0.02263108]
[1766348527431,0.0113149,88379.0,88370.0,0.00568]
[1766348527689,0.0113149,88379.0,88364.0,0.01131682]
[1766348527690,0.14683477,88380.0,88360.0,0.46198784]
[1766348527691,0.01131554,88374.0,88360.0,0.46198784]
[1766348527907,0.13552,88372.0,88366.0,0.02263108]
[1766348528123,0.13552,88372.0,88367.0,0.00568]
[1766348529551,0.01131541,88375.0,88367.0,0.00568]
[1766348529742,0.01131554,88374.0,88367.0,0.00568]
[1766348530402,0.01131541,88375.0,88367.0,0.00568]
[1766348531772,0.14683541,88375.0,88367.0,0.00568]
[1766348532810,0.13552,88374.0,88367.0,0.00568]
[1766348535446,0.14683554,88374.0,88367.0,0.00568]
[1766348537228,0.13552,88374.0,88367.0,0.00568]
[1766348539735,0.01131567,88373.0,88367.0,0.00568]
[1766348539942,0.2034164,88370.0,88360.0,0.00024668]
[1766348540149,0.01131631,88368.0,88361.0,0.00568]
[1766348540569,0.01131618,88369.0,88361.0,0.00568]
[1766348541204,0.14683605,88370.0,88361.0,0.00568]
[1766348541407,0.13552,88370.0,88361.0,0.00568]
[1766348541545,0.01131618,88369.0,88361.0,0.00568]
[1766348541751,0.13552,88370.0,88361.0,0.00568]
[1766348544478,0.14683605,88370.0,88361.0,0.00568]
[1766348544900,0.13552,88370.0,88361.0,0.00568]
[1766348545691,0.14683605,88370.0,88361.0,0.00568]
[1766348546385,0.14683605,88370.0,88356.0,0.05669785]
[1766348546386,0.01131746,88359.0,88356.0,0.04538]
[1766348546626,0.01131759,88358.0,88355.0,0.00568]
[1766348547069,0.01131733,88360.0,88355.0,0.00568]
[1766348547295,0.16040959,88362.0,88355.0,0.00568]
[1766348547515,0.14909251,88362.0,88355.0,0.00568]
[1766348547810,0.17172859,88362.0,88355.0,0.00568]
[1766348548068,0.16041151,88362.0,88355.0,0.00568]
[1766348549439,0.17172859,88362.0,88355.0,0.00603719]
[1766348549655,0.16041151,88362.0,88355.0,0.00603719]
[1766348550299,0.16040959,88362.0,88355.0,0.00603719]
[1766348550744,0.01131874,88361.0,88355.0,0.00603719]
[1766348552858,0.02263595,88361.0,88355.0,0.00603719]
[1766348553113,0.01131874,88361.0,88355.0,0.00603719]
[1766348553333,0.14293721,88361.0,88355.0,0.00603719]
[1766348553547,0.15425595,88361.0,88355.0,0.00603719]
[1766348553757,0.14293721,88361.0,88355.0,0.00603719]
[1766348553967,0.13162,88361.0,88355.0,0.00603719]
[1766348554181,0.01131874,88360.0,88355.0,0.00603719]
[1766348555052,0.14293874,88360.0,88355.0,0.00603719]
[1766348555266,0.38851,88359.0,88353.0,0.00568]
[1766348555481,0.38851,88359.0,88353.0,0.0057729]
[1766348555696,0.01131887,88358.0,88353.0,0.0057729]
[1766348556453,0.01131887,88358.0,88353.0,2.9e-06]
[1766348556454,0.38851,88357.0,88353.0,2.9e-06]
[1766348556654,0.13242,88355.0,88350.0,0.00568]
[1766348556852,0.13250897,88355.0,88350.0,0.00568]
[1766348559181,0.1437358,88372.0,88357.0,0.01131772]
[1766348559386,0.00568,88371.0,88360.0,0.46193881]
[1766348559592,0.01131605,88370.0,88360.0,0.46193881]
[1766348559795,0.01131618,88369.0,88360.0,0.46193881]
[1766348560019,0.01131618,88369.0,88357.0,0.01131772]
[1766348560222,0.01689592,88371.0,88359.0,0.01131746]
[1766348560422,0.01689592,88371.0,88369.0,0.000549]
[1766348560750,0.04531302,88370.0,88358.0,0.01131759]
[1766348560979,0.04531302,88370.0,88357.0,0.01131772]
[1766348561178,0.04531302,88370.0,88358.0,0.01131759]
[1766348561591,0.01131618,88369.0,88357.0,0.01131772]
[1766348561911,0.03399697,88369.0,88357.0,0.01131772]
[1766348564172,0.00568,88368.0,88357.0,0.01131772]
[1766348564382,0.00568,88368.0,88356.0,0.01131785]
[1766348564594,0.01699631,88368.0,88356.0,0.01131785]
[1766348564799,0.00568,88368.0,88356.0,0.01131785]
[1766348565944,0.00568,88368.0,88357.0,0.01131772]
[1766348566186,0.01131618,88369.0,88357.0,0.01131772]
[1766348566393,0.01699797,88367.0,88358.0,0.01131759]
[1766348566594,0.01644897,88367.0,88359.0,0.01131746]
[1766348566812,0.01644897,88367.0,88358.0,0.01131759]
[1766348567068,0.01644897,88367.0,88357.0,0.01131772]
[1766348567972,0.01644897,88367.0,88356.0,0.02263582]
[1766348568799,0.01644897,88367.0,88357.0,0.01131772]
[1766348569000,0.01644897,88367.0,88356.0,0.02263582]
[1766348570162,0.01644897,88367.0,88357.0,0.01131772]
[1766348571292,0.01644897,88367.0,88358.0,0.01131759]
[1766348572475,0.01644897,88367.0,88357.0,0.01131772]
[1766348573640,0.01131797,88367.0,88357.0,0.01131772]
[1766348573824,0.00568,88366.0,88357.0,0.01131772]
[1766348574001,0.00568,88366.0,88357.0,0.01111772]
[1766348575065,0.00568,88366.0,88358.0,0.01131759]
[1766348575268,0.00568,88366.0,88357.0,0.01111772]
[1766348575572,0.00568,88366.0,88358.0,0.01131759]
[1766348576316,0.00568,88366.0,88357.0,0.01111772]
[1766348579212,0.00568,88366.0,88358.0,0.01131759]
[1766348579798,0.00568,88366.0,88356.0,0.02263582]
[1766348579996,0.00568,88366.0,88357.0,0.01131772]
[1766348580228,0.0244347,88369.0,88360.0,0.05658669]
[1766348580430,0.0113149,88379.0,88366.0,0.00055]
[1766348580431,0.0244347,88370.0,88366.0,0.00055]
[1766348580763,0.00568,88373.0,88363.0,0.01131695]
[1766348580946,0.00568,88373.0,88365.0,0.01131669]
[1766348581152,0.00568,88373.0,88366.0,0.01131656]
[1766348582324,0.00568,88373.0,88367.0,0.01131644]
[1766348582879,0.00568,88373.0,88366.0,0.01131656]